Cogmind - Beta 11 @@@ ROGUE MODE // 2022.03.26 @ 10:13:05 Player: Cypher Result: Destroyed by D-53 Grenadier with Mini Grenade Launcher Performance ------------- Evolutions (0) 0 Regions Visited (2) 400 Robots Destroyed (11) 55 Value Destroyed (152) 152 Prototype IDs (2) 40 Alien Tech Used (0) 0 Bonus (0) 0 TOTAL SCORE: 647 Bonus ------- None Cogmind --------- Core Integrity 0/250 Matter 88/300 Energy 100/100 System Corruption 0% Temperature Cool (0) Movement Rolling (125) Ox3 Location -10/Mines Parts ------- > --- POWER (1) -------- (None) > --- PROPULSION (2) --- Wheel Wheel > --- UTILITY (2) ------ Huge Storage Unit > --- WEAPON (2) ------- (None) > --- INVENTORY (25) --- Light Treads Improved Heat Sink Small Storage Unit EM Pulse Gun Grenade Launcher Mining Laser Mining Claw Peak State ------------ > --- POWER ------------ Ion Engine > --- PROPULSION ------- Wheel Wheel > --- UTILITY ---------- Huge Storage Unit Improved Terrain Scanner > --- WEAPON ----------- Medium Laser Light Assault Rifle > --- INVENTORY -------- Light Treads Light Treads Improved Heat Sink Small Storage Unit EM Pulse Gun Grenade Launcher Grenade Launcher Mining Laser [Rating: 10] Favorites ----------- Power Ion Engine Engine Ion Engine Propulsion Wheel Treads Light Treads Wheel Wheel Utility Huge Storage Unit Device Improved Terrain Scanner Storage Huge Storage Unit Weapon Medium Laser Energy Gun Medium Laser Ballistic Gun Light Assault Rifle Launcher Grenade Launcher Special Weapon Mining Laser Build | -11 -10 -10 ------- Run | Scr Mat Min Slots Evolved . | . . . Power . | . . . Propulsion . | . . . Utility . | . . . Weapon . | . . . Parts Attached 20 | 7 6 7 Power 1 | 1 . . Engine 1 | 1 . . Core . | . . . Reactor . | . . . Propulsion 8 | 2 1 5 Treads 2 | . . 2 Leg . | . . . Wheel 6 | 2 1 3 Hover . | . . . Flight . | . . . Utility 3 | 2 1 . Device 1 | 1 . . Storage 2 | 1 1 . Processor . | . . . Hackware . | . . . Protection . | . . . Artifact . | . . . Weapon 8 | 2 4 2 Energy Gun 3 | 2 1 . Energy Cannon . | . . . Ballistic Gun 1 | . 1 . Ballistic Cannon . | . . . Launcher 3 | . 1 2 Special Weapon 1 | . 1 . Impact Weapon . | . . . Slashing Weapon . | . . . Piercing Weapon . | . . . Special Melee Weapon . | . . . Unidentified Prototypes . | . . . Parts Lost 10 | . 2 8 Power 1 | . . 1 Propulsion 4 | . 1 3 Utility 1 | . 1 . Weapon 4 | . . 4 Highest Loss Streak 5 | . 1 5 To Critical Strikes . | . . . Average Slot Usage (%) 88 | . 98 73 Engine 10 | . 14 5 Treads 3 | . . 7 Wheel 24 | . 28 18 Device 7 | . 12 . Storage 14 | . 14 14 Energy Gun 14 | . 15 12 Ballistic Gun 9 | . 7 11 Launcher 1 | . . 2 Special Weapon 2 | . 3 . Naked Turns . | . . . Heaviest Build 89 | 15 89 88 Greatest Support 40 | 26 26 40 Greatest Overweight (x) 8 | . 4 8 Average Overweight (x) 2 | . 1 5 Largest Inventory Capacity 25 | 8 25 25 Average Capacity 18 | 7 16 25 Most Carried 9 | 5 9 9 Average Carried 7 | 2 7 8 Final Capacity 25 | 8 25 25 Final Carried 9 | 5 9 7 Class Distribution -------------------- 100% | Mutant Dominant Class ---------------- Mutant | -10/Materials Mutant | -10/Mines Resources | -11 -10 -10 ----------- Run | Scr Mat Min Matter Collected 241 | 199 41 1 Remotely . | . . . Salvage Created 308 | 124 127 57 Parts 25 | 9 12 4 Haulers Intercepted . | . . . Recyclers Shooed 1 | . 1 . Parts Field Recycled . | . . . Retrieved Matter . | . . . Parts Self-Destructed . | . . . Prevented . | . . . Kills | -11 -10 -10 ------- Run | Scr Mat Min Combat Hostiles Destroyed 15 | . 5 10 Guns 6 | . 4 2 AOE 9 | . 1 8 Classes Destroyed 6 | 2 2 2 Worker 1 | . . 1 Tunneler 2 | 2 . . Recycler 1 | 1 . . Swarmer 5 | . 3 2 Grunt 2 | . 2 . Assembled 8 | . . 8 Best Kill Streak 8 | 3 3 8 Combat Bots Only 8 | . 3 8 Max Kills in Single Turn 4 | 1 1 4 Gunslinging . | . . . Exploded 4 | . 1 4 Melee . | . . . Uniques/NPCs Destroyed . | . . . Combat | -11 -10 -10 -------- Run | Scr Mat Min Damage Taken 990 | . 293 697 Core 266 | . 43 223 Absorbed by Shields . | . . . Core Remaining (%) 100 | 100 . . Volleys Fired 35 | 6 19 10 Largest 2 | 2 2 2 Hottest 100 | 90 100 70 Shots Fired 66 | 12 34 20 Gun 56 | 12 30 14 Cannon . | . . . Launcher 9 | . 3 6 Special 1 | . 1 . Kinetic 13 | . 6 7 Thermal 29 | 6 16 7 Explosive 9 | . 3 6 Electromagnetic 15 | 6 9 . Robot Hit Streak 6 | 3 6 6 Robot Miss Streak 5 | 1 3 5 Penetration Max . | . . . Secondary Targets 1 | . . 1 Max Gunslinging Chain 1 | . . 1 Shots Hit Robots 36 | 8 20 8 Core Hits 38 | 4 9 25 Critical Kills . | . . . Critical Parts Destroyed . | . . . Critical Strikes 2 | 1 1 . Burn 1 | . 1 . Corrupt 1 | 1 . . Melee Attacks . | . . . Impact . | . . . Slashing . | . . . Piercing . | . . . Sneak Attacks . | . . . Combat Hostiles . | . . . Follow-up Attacks . | . . . Damage Inflicted 983 | 103 318 562 Guns 385 | 103 215 67 Cannons . | . . . Explosions 598 | . 103 495 Melee . | . . . Ramming . | . . . Kinetic 59 | . 29 30 Thermal 208 | 50 121 37 Explosive 598 | . 103 495 Electromagnetic 118 | 53 65 . Impact . | . . . Slashing . | . . . Piercing . | . . . Highest Corruption . | . . . Average Corruption . | . . . Corruption Purged . | . . . Corruption Blocked . | . . . Overload Shots . | . . . Overflow Damage 2 | . . 2 Projectiles . | . . . Explosions 2 | . . 2 Melee . | . . . Knockbacks . | . . . Impact . | . . . Kinetic . | . . . Secondary . | . . . Self-Inflicted Damage 51 | . 30 21 Shots 3 | . 1 2 Rammed . | . . . Targets Rammed . | . . . Kicked . | . . . Crushed . | . . . Highest Temperature 230 | 90 230 35 Average Temperature 62 | 38 85 16 Received Heat Transfer 158 | . 78 80 Siege Activations . | . . . Robots Corrupted . | . . . Combat Hostiles . | . . . Parts Fried . | . . . Impact Corruptions . | . . . Robots Melted . | . . . Combat Hostiles . | . . . Parts Melted . | . . . Heat Transferred 703 | 148 444 111 Parts Sabotaged . | . . . Parts Stolen . | . . . Parts Stripped . | . . . Power Chain Reactions . | . . . Missiles Intercepted . | . . . Alert | -11 -10 -10 ------- Run | Scr Mat Min Peak Influence 133 | 15 133 94 Initial 9 | . 9 5 Average 25 | 5 34 19 Maximum Alert Level . | . . . Low Security (%) 100 | 100 100 100 Level 1 . | . . . Level 2 . | . . . Level 3 . | . . . Level 4 . | . . . Level 5 . | . . . High Security . | . . . Max Security . | . . . Squads Dispatched 2 | . 2 . Investigation . | . . . Extermination . | . . . Reinforcement 2 | . 2 . Assault . | . . . Garrison . | . . . Intercept . | . . . Searches Triggered . | . . . Construction Impeded . | . . . Haulers Reinforced . | . . . Active Scanning Responses . | . . . Cargo Convoy Interrupts . | . . . Stealth | -11 -10 -10 --------- Run | Scr Mat Min Distress Signals . | . . . Communications Jammed . | . . . Distress Signals . | . . . Times Spotted 32 | . 12 20 Peak Tracking Total 10 | . 4 10 Tactical Retreats 2 | . 1 1 Traps | -11 -10 -10 ------- Run | Scr Mat Min Traps Triggered . | . . . Indirectly . | . . . Trap Hack Attempts . | . . . Triggered . | . . . Disarmed . | . . . Reprogrammed . | . . . Reused . | . . . Traps Extracted . | . . . Installed . | . . . Triggered . | . . . Machines | -11 -10 -10 ---------- Run | Scr Mat Min Machines Disabled . | . . . Max in Single Turn . | . . . Machines Sabotaged . | . . . Garrisons Compromised . | . . . Overloaded Fab Kills . | . . . Hacking | -11 -10 -10 --------- Run | Scr Mat Min Machines Accessed 3 | . 3 . Terminals 3 | . 3 . Fabricators . | . . . Repair Stations . | . . . Recycling Units . | . . . Scanalyzers . | . . . Garrison Access . | . . . Total Hacks 7 | . 7 . Successful 5 | . 5 . Failed 2 | . 2 . Catastrophic . | . . . Database Lockouts . | . . . Manual 3 | . 3 . Terminals 7 | . 7 . Fabricators . | . . . Repair Stations . | . . . Recycling Units . | . . . Scanalyzers . | . . . Garrison Access . | . . . Terminal Hacks 4 | . 4 . Prototype ID Bank 1 | . 1 . Unreport Threat 2 | . 2 . Recall Reinforcements 1 | . 1 . Fabricator Hacks . | . . . Repair Station Hacks . | . . . Recycling Unit Hacks . | . . . Scanalyzer . | . . . Garrison Access Hacks . | . . . Unauthorized Hacks 1 | . 1 . Terminals 1 | . 1 . Botnet 1 | . 1 . Fabricators . | . . . Repair Stations . | . . . Recycling Units . | . . . Scanalyzers . | . . . Garrison Access . | . . . Data Cores Recovered . | . . . Used . | . . . Hacking Detections 3 | . 3 . Full Trace Events . | . . . Feedback Events . | . . . Feedback Blocked . | . . . Robot Schematics Acquired . | . . . Robots Built . | . . . Authchips . | . . . Time . | . . . Total Robot Build Rating . | . . . Part Schematics Acquired . | . . . Parts Built . | . . . Authchips . | . . . Time . | . . . Total Part Build Rating . | . . . Parts Repaired . | . . . Time . | . . . Parts Recycled . | . . . Recycled Matter . | . . . Retrieved Matter . | . . . Retrieved Components . | . . . Parts Scanalyzed . | . . . Part Schematics Acquired . | . . . Parts Damaged . | . . . Bothacking | -11 -10 -10 ------------ Run | Scr Mat Min Used RIF Installer . | . . . Robots Hacked . | . . . Non-combat . | . . . Combat . | . . . Robot Hacks Applied . | . . . Relay Couplers Released . | . . . Fabnet Peak Effective % . | . . . Robots Rewired . | . . . Allies Hacked . | . . . Hacks Repelled . | . . . Allies | -11 -10 -10 -------- Run | Scr Mat Min Total Allies . | . . . Largest Group . | . . . Highest-Rated Group . | . . . Highest-Rated Ally . | . . . Total Orders . | . . . Ally Attacks . | . . . Total Damage . | . . . Kills . | . . . Allies Corrupted . | . . . Allies Melted . | . . . Intel | -11 -10 -10 ------- Run | Scr Mat Min Robot Analysis Total . | . . . Derelict Logs Recovered 1 | . . 1 Drone Launches . | . . . Drone Recoveries . | . . . Exploration | -11 -10 -10 ------------- Run | Scr Mat Min Turns Passed 585 | 83 302 200 Spaces Moved 359 | 55 208 96 Core 1 | 1 . . Treads 1 | . . 1 Legs . | . . . Wheels 357 | 54 208 95 Hover . | . . . Flight . | . . . Fastest Speed 50 | 50 90 125 Average Speed 122 | 90 110 167 Slowest Speed 320 | 100 140 320 Overloaded Moves . | . . . Propulsion Burnouts . | . . . Robots Hopped . | . . . Cave-ins Triggered . | . . . Exploration Rate (%) 20 | 4 37 20 Regions Visited 2 Branch Regions 1 Pre-discovered Areas . | . . . Known Exits Taken . | . . . Unknown Exits Taken 2 | 1 1 . Scrap Searched . | . . . Spaces Dug 1 | . 1 . Terrain Destroyed 82 | . 26 56 Melee . | . . . Projectile 1 | . 1 . AOE 81 | . 25 56 Terrain Rammed . | . . . Walls Destroyed . | . . . Machines Disabled . | . . . Actions | -11 -10 -10 --------- Run | Scr Mat Min Total 432 | 72 244 116 Wait 6 | . 6 . Move 357 | 54 207 96 Hop . | . . . Pick Up 11 | 5 5 1 Fast Attach 9 | 7 . 2 Attach 6 | . 1 5 Detach 2 | . . 2 Swap 5 | . 5 . Drop 1 | . 1 . Fire 35 | 6 19 10 Melee . | . . . Ram . | . . . Kick . | . . . Crush . | . . . Escape Stasis . | . . . Rewire . | . . . Trap . | . . . Miscellaneous . | . . . Route ------- -11/Scrapyard -10/Materials -10/Mines History --------- Turn | Location | Event 15 | -11/Scrapyard | Discovered new exit (range 14) 84 | -11/Scrapyard | Entered Materials 262 | -10/Materials | Discovered new exit (range 12) 322 | -10/Materials | Build established: Mutant 386 | -10/Materials | Entered Mines 481 | -10/Mines | YI-UF0 nonchalantly dropped a Grenade Launcher on the ground 500 | -10/Mines | Lost 3 parts (1p2n) 531 | -10/Mines | Assembled infested the area 536 | -10/Mines | Learned Materials stockpile data 563 | -10/Mines | Core integrity fell below 50% 583 | -10/Mines | Core integrity fell below 20% 586 | -10/Mines | Destroyed by D-53 Grenadier with Mini Grenade Launcher Last Messages --------------- 00566_ as-99514 destroyed. 00566_ as-69283 destroyed. 00569_ as-89686 destroyed. 00569_ as-38434 destroyed. 00569_ as-80857 destroyed. 00570_ The unstable cave ceiling collapses. 00573_ Acquired 1 matter. 00574_ Lgt. Treads destroyed. 00575_ The unstable cave ceiling collapses. 00577_ Acquired Wheel. 00580_ U-05 Engineer destroyed. 00580_ C-30 ARC bursts open, deploying its payload. 00580_ D-53 Grenadier unfolds itself. 00582_ The unstable cave ceiling collapses. 00582_ Grenade Launcher destroyed. 00582_ as-97876 destroyed. 00582_ as-85171 destroyed. 00582_ as-76239 destroyed. 00582_ R-06 Scavenger collects Structural Scanner. 00584_ Grenade Launcher destroyed. Map ----- +----------------------------------------------------+ | ??????????????????????????????????????####???# | | ?????????????????????????????????????## ##??# ### | | ?????????????????????????????????????# ##?# #?? | | ????????????????????????????????????## ### #?? | | ???????????????????????????????????## #?? | | ??????????????????????????????????## #?? | | ?????????????????????????### ###### ##? | | ??????????????????????# ### ## | | ??????????????????????????######## #?## | | ?????????????????????????????????## #??# # | | ??????????????????????????????????## ##?## ### | | ??????????????????????????????????##=####??# ##?? | | ?????????????????????????????????### ##???# #??? | | ?????????????????????????????????# #* #???# #??? | | ????????????????????????????????## #???# #??? | | ????????????????????????????????# #???## ##??? | | ????????????????????????????????# # ###????##????? | | ??????????????????????#####?????### ##???????????? | | ??????????????????????? #??????## #????????????? | | ??????????????????????? #???????# #????????????? | | ???????????????????????# #???????# #????????????? | | ???????????????????##### #???????# #????????????? | | ???????????????????? #?##????# #????????????? | | ?????????????????????# ## ###### #### #???????? | | ????????????????????## d% r #???????? | | ????????????????????# @ *r######## ###???????? | | ????????????????????### d|#????????#?????????? | | ?????????????????????# #??????????????????? | | ?????????????????????# #?????????????????? | | ????????????????????# ##?????????????????? | | ????????????????????# #??????????????????? | | ????????????????????## #?????????????????? | | ?????????????????????# #?????????????????? | | ?????????????????????# #?????????????????? | | ????????????????????## ?????????????????? | | ????????????????????# a #????????????????? | | ????????????????????# #????????????????? | | ????????????????????# #????????????????? | | ????????????????????# %| ????????????????? | | ????????????????????# ## ## ! ????????????????? | | ????????????????????# ??##?? ???????????????? | | ?????????????????????? ?????? ??????????????????? | | ?????????????????????????????????????????????????? | | ?????????????????????????????????????????????????? | | ?????????????????????????????????????????????????? | | ?????????????????????????????????????????????????? | | ?????????????????????????????????????????????????? | | ?????????????????????????????????????????????????? | | ?????????????????????????????????????????????????? | | ?????????????????????????????????????????????????? | +----------------------------------------------------+ Best States ------------- Heat Dissipation 25 Energy Generation 10 Energy Capacity 250 Matter Stores 248 Matter Capacity 300 Sight Range 16 Terrain Scan Range 16 Terrain Scan Density 10 Evasion (%) 42 Recoil Reduction 2 Item Schematics ----------------- None Robot Schematics ------------------ None Fabricated ------------ Nothing Alien Tech Used ----------------- None Achievements -------------- None Challenges ------------ None Game ------ Seed SensorQuantumNanovents Manual? 0 Play Time 00:10:30 Cumulative 211.4 hours Start 2022.03.25 @ 23:17:04 End 2022.03.26 @ 10:13:05 Sessions 2 Manual Loads 0 Difficulty Rogue Special Mode None Game No. 208 Rogue 208 Adventurer 0 Explorer 0 Win Type - Total 0 Types 0/0/0/0/0/0/0/0/0 Lore% 61 Gallery% 69 Achievement% 46 Wizard Run 0 Options --------- ASCII 0 Keyboard 0 Movement Numpad Keybinds 0 Fullscreen 1 Font 24/Smallcaps Map View 76x50 Tactical HUD 1 Map Filters NONE Filters NONE Steam 1 RUN: 981224f3-b437-4a3a-9313-8bbefb4b64e8